{"text_format":"1","workbook":"xlsx","n_sheets":3,"sheets":["Relación de gastos","Relación de ingresos ","Gastos e ingresos"],"not_rendered":{"charts":0,"images":4,"macros":1,"external_links":0,"defined_names":8,"comments":3,"pivot_tables":0},"unopened":[],"bounds":{"document_bytes":16777216,"sheet_cells":100000,"rows_first":2000,"rows_last":500,"rows_between":2000,"halvings":0,"cell_chars":16384,"cell_head_chars":4096},"cells_cut":0,"cells_raw":0,"read":"whole","date_system":"1900"}

{"sheet":"Relación de gastos","index":0,"n_rows":128,"n_cols":10,"rows_kept":128,"cut":false,"hidden":false,"merged":[[103,1,103,2],[104,4,105,10],[108,0,108,10],[109,0,109,2],[110,0,110,10],[28,0,28,10],[29,9,29,10],[30,9,30,10],[31,9,31,10],[32,9,32,10],[33,0,33,6],[96,0,96,2],[96,3,96,6],[96,9,96,10],[91,9,91,10],[92,9,92,10],[93,9,93,10],[94,9,94,10],[95,0,95,6],[95,9,95,10],[87,9,87,10],[88,9,88,10],[89,0,89,6],[89,9,89,10],[90,0,90,10],[83,0,83,6],[83,9,83,10],[84,0,84,10],[85,9,85,10],[86,9,86,10],[78,0,78,10],[79,9,79,10],[80,9,80,10],[81,9,81,10],[82,9,82,10],[59,9,59,10],[54,0,54,10],[73,9,73,10],[74,9,74,10],[75,9,75,10],[76,9,76,10],[77,0,77,6],[77,9,77,10],[69,9,69,10],[70,9,70,10],[71,0,71,6],[71,9,71,10],[72,0,72,10],[16,0,16,10],[17,9,17,10],[7,3,7,4],[15,9,15,10],[15,0,15,6],[11,9,11,10],[12,9,12,10],[13,9,13,10],[10,0,10,10],[14,9,14,10],[9,0,9,10],[97,0,97,5],[97,9,97,10],[99,0,99,10],[111,0,111,10],[112,0,112,10],[42,0,42,10],[43,9,43,10],[44,9,44,10],[45,9,45,10],[46,9,46,10],[51,9,51,10],[52,9,52,10],[53,0,53,6],[53,9,53,10],[68,9,68,10],[50,9,50,10],[60,0,60,10],[61,9,61,10],[62,9,62,10],[63,9,63,10],[64,9,64,10],[55,9,55,10],[56,9,56,10],[57,9,57,10],[3,0,3,1],[7,1,8,1],[7,0,8,0],[6,0,6,4],[0,0,0,10],[4,0,4,1],[2,2,2,3],[3,2,3,3],[4,2,4,3],[2,0,2,1],[2,4,2,6],[3,4,3,6],[4,4,4,6],[7,2,8,2],[2,7,2,8],[3,7,3,8],[8,9,8,10],[7,9,7,10],[4,7,4,8],[67,9,67,10],[26,9,26,10],[27,0,27,6],[27,9,27,10],[18,9,18,10],[19,9,19,10],[20,9,20,10],[21,0,21,6],[21,9,21,10],[22,0,22,10],[23,9,23,10],[24,9,24,10],[25,9,25,10],[33,9,33,10],[36,0,36,10],[37,9,37,10],[40,9,40,10],[41,0,41,6],[41,9,41,10],[34,0,34,2],[34,3,34,6],[34,9,34,10],[58,9,58,10],[59,0,59,6],[35,0,35,10],[47,0,47,6],[47,9,47,10],[48,0,48,10],[49,9,49,10],[126,0,126,11],[127,0,127,11],[100,0,101,10],[114,0,114,10],[115,0,115,11],[119,0,119,11],[120,0,120,11],[121,0,121,11],[122,0,122,11],[123,0,123,11],[125,0,125,11],[113,0,113,10],[116,0,116,10],[117,0,117,10],[118,0,118,11],[124,0,124,11],[65,0,65,6],[65,9,65,10],[66,0,66,10]]}
["Relación clasificada de todos los gastos realizados para la ejecución de la actividad subvencionada"]
[]
["Persona física/jurídica beneficiaria:         ",null,null,null,"Importe del coste total del proyecto:",null,null,null,null,"euros"]
["Código de subvención:",null,null,null,"Importe de la subvención otorgada:",null,null,null,null,"euros"]
["Nombre del proyecto subvencionado:",null,null,null,"Período de ejecución del proyecto subvencionado:",null,null,null,null,"a"]
[]
["Gastos del proyecto/actividad/servicio subvencionado (*)"]
["Núm. de orden (0)\n\n","Número de documento: justificantes gasto personal(1), factura o recibo/tiquet(2)","Concepto de la factura / \ndocumento probatorio equivalente\n","Emisor/a de la factura",null,"Fecha de emisión","Importe total de la factura","Importe imputable (dedicado) al proyecto (3)","Importe imputable a la subvención municipal (4)","Observaciones"]
[null,null,null,"NIF","Nombre","dd/mm/aaaa","euros","euros","euros"]
["GASTOS DIRECTOS (Aquellos que se identifican directamente con el proyecto)"]
["D.1  Nóminas y seguridad social IRPF (régimen general o régimen de autónomos) del personal propio vinculado al proyecto subvencionado (máximo 40% subvención)"]
[]
[]
[]
[]
["Subtotal D.1",null,null,null,null,null,null,{"$f":"SUM(H12:H15)","v":0},{"$f":"SUM(I12:I15)","v":0}]
["D.2 Rendimentos anuales netos del empresario/a individual (ver 13.2 bases) (máximo 40% subvención)"]
[]
[]
[]
[]
["Subtotal D.2",null,null,null,null,null,null,{"$f":"SUM(H18:H21)","v":0},{"$f":"SUM(I18:I21)","v":0}]
["D.3  Trabajos realizados por profesionales y empresas externas directamente vinculadas al proyecto subvencionado (diseño, implementación, formación y otros relacionados con el desarrollo del proyecto)"]
[]
[]
[]
[]
["Subtotal D.3",null,null,null,null,null,null,{"$f":"SUM(H24:H27)","v":0},{"$f":"SUM(I24:I27)","v":0}]
["D.4  Cuotas de inscripción, alquiler de sistemas de software y hardware y mantenimiento"]
[]
[]
[]
[]
["Subtotal D.4",null,null,null,null,null,null,{"$f":"SUM(H30:H33)","v":0},{"$f":"SUM(I30:I33)","v":0}]
["TOTAL GASTOS DIRECTOS",null,null,"TOTAL GASTOS DIRECTOS",null,null,null,{"$f":"H16+H22+H28+H34","v":0},{"$f":"I16+I22+I28+I34","v":0}]
["GASTOS INDIRECTOS (no se pueden assignar directamente al proyecto sin utilitzar algun % de asignación) (máximo 10% de subvención)"]
["I.1 Personal de soporte al proyecto subvencionado (Nóminas y seguridad social)"]
[]
[]
[]
[]
["Subtotal I1",null,null,null,null,null,null,{"$f":"SUM(H38:H41)","v":0},{"$f":"SUM(I38:I41)","v":0}]
["I.2  Seguros"]
[]
[]
[]
[]
["Subtotal I2",null,null,null,null,null,null,{"$f":"SUM(H44:H47)","v":0},{"$f":"SUM(I44:I47)","v":0}]
["I.3  Amortización"]
[]
[]
[]
[]
["Subtotal I3",null,null,null,null,null,null,{"$f":"SUM(H50:H53)","v":0},{"$f":"SUM(I50:I53)","v":0}]
["I.4  Alquiler de bienes inmuebles"]
[]
[]
[]
[]
["Subtotal I4",null,null,null,null,null,null,{"$f":"SUM(H56:H59)","v":0},{"$f":"SUM(I56:I59)","v":0}]
["I.5  Adquisición de materiales y bienes consumibles parcialmente imputables al proyecto"]
[]
[]
[]
[]
["Subtotal I5",null,null,null,null,null,null,{"$f":"SUM(H62:H65)","v":0},{"$f":"SUM(I62:I65)","v":0}]
["I.6  Mantenimiento de edificios y/o instalaciones"]
[]
[]
[]
[]
["Subtotal I6",null,null,null,null,null,null,{"$f":"SUM(H68:H71)","v":0},{"$f":"SUM(I68:I71)","v":0}]
["I.7  Comunicaciones (teléfono, correos, conexión a internet)"]
[]
[]
[]
[]
["Subtotal I7",null,null,null,null,null,null,{"$f":"SUM(H74:H77)","v":0},{"$f":"SUM(I74:I77)","v":0}]
["I.8  Gastos financieros"]
[]
[]
[]
[]
["Subtotal I8",null,null,null,null,null,null,{"$f":"SUM(H80:H83)","v":0},{"$f":"SUM(I80:I83)","v":0}]
["I.9  Suministros "]
[]
[]
[]
[]
["Subtotal I9",null,null,null,null,null,null,{"$f":"SUM(H86:H89)","v":0},{"$f":"SUM(I86:I89)","v":0}]
["I.10 Trabajos realizados por otras empresas, parcialmente imputables al proyecto subvencionable (limpieza, seguridad...)"]
[]
[]
[]
[]
["Subtotal I10",null,null,null,null,null,null,{"$f":"SUM(H92:H95)","v":0},{"$f":"SUM(I92:I95)","v":0}]
["TOTAL GASTOS INDIRECTOS",null,null,"TOTAL GASTOS INDIRECTOS",null,null,null,{"$f":"+H42+H48+H54+H60+H66+H72+H78+H84+H90+H96","v":0},{"$f":"+I42+I48+I54+I60+I66+I72+I78+I84+I90+I96","v":0}]
["TOTAL GASTOS",null,null,null,null,null,"TOTAL",{"$f":"H35+H97","v":0},{"$f":"I35+I97","v":0}]
[]
["El Sr./Sra. (indicar el nombre y apellidos de la persona representante que firma la justificación) con DNI/NIE (indicar el núm. DNI) en calidad de persona física beneficiaria o representante legal de la persona jurídica beneficiaria (indicar nombre y apellidos) con NIF (indicar núm DNI)."]
["CERTIFICA que los ingresos imputados al proyecto/actividad/servicio subvencionado han sido efectivamente ingresados; que custodiará la documentación soporte que lo acredita; que esta documentación se encuentra a disposición del Ayuntamiento de Barcelona o de los otros entes municipales en los archivos de esta organización, durante un período mínimo de 4 años a contar desde la fecha de presentación de la presente justificación."]
[]
[]
[null,"Población y fecha: ",null,null,"Firma y sello (en caso de registro físico)"]
[null,null,null,null,"En caso de presentación de la documentación por vía telemática, debe imprimir/ guardar las hojas en formato pdf y firmarlas electrónicamente mediante certificado digital (no será válida la firma escaneada)."]
[]
[]
["Notas:"]
["(*) Deben relacionarse todos los gastos del proyecto/actividad/servicio subvencionado. En el caso de que el número de filas de cada concepto sea insuficiente podéis insertar líneas dentro del mismo concepto seleccionando una celda verde y haciendo clic sobre el botón de insertar línea."]
["(0) El número de orden debe ser correlativo empezando por D.1.1, D.1.2, D.1.3, D.2.4, etc."]
["(1) Respecto a los gastos de recursos humanos, puede ser subvencionable el coste total salarial mensual, que corresponde a la suma de la retribución bruta que aparece en la nómina del trabajador/a más la cuota de la empresa a la Seg. Social. Los gastos de personal se justifican con la nómina del trabajador/a acompañada de los correspondientes RLC i RNT (anteriores TC1 y TC2) de la TGSS y el modelo 111 del IRPF."]
["(2) En el caso de que el documento justificativo del resto de gastos, no sea una factura, sino otro documento probatorio equivalente, como un recibo o justificante (como para dietas o transporte público), hay que indicarlo en la columna \"observaciones\""]
["(3) En el caso de que un justificante incluya conceptos que no tienen relación con el proyecto/actividad/servicio por el qué se ha otorgado la subvención, aquí sólo se debe indicar la parte que realmente se ha dedicado al proyecto."]
["(4) En esta columna se debe indicar el importe total o parcial de la factura que se imputa a la subvención recibda del Ayuntamiento de Barcelona. El total imputado, en esta columna, debe ser igual al importe de la subvención recibida."]
[]
["Modalidad Ad. Digitalización: Facilitar la transformación digital de las empresas y organizaciones de la ESS"]
["1. La cuantía de la subvención otorgada no superará el 80% del gasto total del proyecto a subvencionar."]
["2. El importe máximo de subvención para la modalidad \"d\" del ámbito temático de Creación i consolidación (Ad) es 10.000€. "]
["3. En caso de que la solicitud presentada sobrepase el importe máximo, se considerará como importe solicitado el máximo de lo establecido en la convocatoria."]
["4. Se limita con un máximo del 40% del importe de la subvención para gastos de personal propio que participa de forma directa y debidamente al proyecto subvencionable."]
["5. Sólo con carácter excepcional, los/las empresarios/as individuales que no tengan personas trabajadoras en plantilla podrán acreditar sus trabajos mediante una declaración responsable acompañada de las declaraciones IRPF (modelo 130) del ejercicio corriente. El precio/hora imputado al proyecto subvencionado no podrá superar la cantidad resultante de dividir los rendimientos anuales netos del empresario/a individual para 1800."]
["6. Los gastos de implantación de software y hardware de cartelería y los sistemas de gestión informatizada no incluyen el gasto de compra."]
["7 . En ningún caso se consideraran gastos subvencionables:\n> Los impuestos indirectos cuando sean susceptibles de recuperación o compensación.\n> Los gastos de inversión, incluídas las adquisiciones de bienes muebles.\n> Los gastos realizados con fecha anterior al inicio del proyecto y fecha posterior a la finalización del proyecto.\n> Otros gastos que se indiquen en la convocatoria.\n"]
["8. Son imputables en esta modalidad los gastos indirectos, detallados en el apartado 13.3. de las bases reguladoras; con un máximo del 10% del importe de la subvención."]
["9. La retribución de las personas contratadas en el marco del proyecto subvencionado no puede ser inferior al Salario Mínimo Interprofesional (SMI), ni a la estipulada en el correspondiente convenio o marco normativo de referencia (punto 7de las bases 2021: requisitos de los proyectos). De acuerdo con el Real decreto 817/2021, de 28 de septiembre, por el que se fija el salario mínimo interprofesional para el 2021, la cuantía mínima anual es de 13.510 euros. Este importe puede ser modificado, de acuerdo con la normativa vigente en el momento de su aplicación. "]
["10. Los proyectos subvencionados deben fomentar activitades de interés público o social, las cuales deben ser gratuítas para las personas participantes o en ningún caso el precio debe suponer un obstàculo para su participación, buscando otras formas de acceso para personas con dificultades económicas. En el caso que haya algún tipo de lucro, deberá revertir en las propias actividades subvencionadas."]
["11. El Ayuntamiento de Barcelona y sus entidades municipales en ningún caso subvencionarán el mismo proyecto, ejecutado durante el mismo período, por ningún otro procedimiento de concesión que no sea el regulado por las bases reguladoras."]
["12. El/la beneficiario/a no podrá alterar en ningún caso el destino de las subvenciones concedidas."]

{"sheet":"Relación de ingresos ","index":1,"n_rows":79,"n_cols":10,"rows_kept":79,"cut":false,"hidden":false,"merged":[[73,1,73,3],[64,6,64,9],[59,6,59,9],[66,6,66,9],[60,6,60,9],[61,6,61,9],[62,6,62,9],[63,6,63,9],[66,0,66,3],[65,0,65,3],[69,0,69,9],[70,0,71,9],[65,6,65,9],[56,0,56,3],[50,0,50,3],[53,6,53,9],[52,6,52,9],[56,6,56,9],[50,6,50,9],[0,0,0,9],[9,0,9,9],[15,0,15,9],[7,6,8,9],[10,6,10,9],[7,0,8,0],[11,6,11,9],[13,6,13,9],[3,2,3,3],[2,2,2,3],[6,0,6,3],[4,2,4,3],[7,2,7,3],[7,1,8,1],[14,0,14,3],[44,0,44,3],[38,0,38,3],[32,0,32,3],[14,6,14,9],[20,6,20,9],[28,6,28,9],[38,6,38,9],[37,6,37,9],[32,6,32,9],[31,6,31,9],[26,0,26,3],[20,0,20,3],[36,6,36,9],[34,6,34,9],[24,6,24,9],[29,6,29,9],[16,6,16,9],[22,6,22,9],[26,6,26,9],[25,6,25,9],[41,6,41,9],[40,6,40,9],[30,6,30,9],[74,5,75,9],[23,6,23,9],[19,6,19,9],[18,6,18,9],[17,6,17,9],[47,6,47,9],[46,6,46,9],[48,6,48,9],[44,6,44,9],[43,6,43,9],[42,6,42,9],[49,6,49,9],[58,6,58,9]]}
["Detalle de todos los ingresos obtenidos y aportaciones del propio beneficiario para la ejecución de la actividad subvencionada"]
[]
[null,"Nombre de la persona física/jurídica beneficiaria:        ",{"$f":"IF('Relación de gastos'!C3:D3<>\"\",'Relación de gastos'!C3:D3,\"\")","v":""},null,"Importe del coste total del proyecto:",null,null,{"$f":"IF(+'Relación de gastos'!H3=\"\",\"\",+'Relación de gastos'!H3)","v":""},"euros"]
[null,"Código de subvención:",{"$f":"IF('Relación de gastos'!C4:D4<>\"\",'Relación de gastos'!C4:D4,\"\")","v":""},null,"Importe de la subvención otorgada:",null,null,{"$f":"IF(+'Relación de gastos'!H4=\"\",\"\",+'Relación de gastos'!H4)","v":""},"euros"]
[null,"Nombre del proyecto subvencionado:",{"$f":"IF('Relación de gastos'!C5:D5<>\"\",'Relación de gastos'!C5:D5,\"\")","v":""},null,"Período de ejecución del proyecto subvencionado:",null,null,{"$f":"IF(+'Relación de gastos'!H5=\"\",\"\",+'Relación de gastos'!H5)","v":""},"a",{"$f":"IF(+'Relación de gastos'!K5=\"\",\"\",+'Relación de gastos'!K5)","v":""}]
[]
["Ingresos del proyecto/actividad/servicio subvencionado"]
["núm. de orden (0)","Concepto del ingreso","Emisor/a del ingreso",null,"Fecha de cobro\n(dd/mm/aaaa)\n","Importe","Observaciones"]
[null,null,"NIF","Nombre","(1)","euros"]
["A. Subvención municipal "]
[]
[]
[]
[]
[null,null,null,null,"Subtotal A",{"$f":"SUM(F11:F14)","v":0}]
["B. Subvenciones de otras administraciones"]
[]
[]
[]
[]
[null,null,null,null,"Subtotal B",{"$f":"SUM(F17:F20)","v":0}]
["C. Subvenciones de entes privados"]
[]
[]
[]
[]
[null,null,null,null,"Subtotal C",{"$f":"SUM(F23:F26)","v":0}]
["D. Recursos propios de la organización aplicados al proyecto"]
[]
[]
[]
[]
[null,null,null,null,"Subtotal D",{"$f":"SUM(F29:F32)","v":0}]
["E. Taquillaje"]
[]
[]
[]
[]
[null,null,null,null,"Subtotal E",{"$f":"SUM(F35:F38)","v":0}]
["F. Cuotas de inscripción"]
[]
[]
[]
[]
[null,null,null,null,"Subtotal F",{"$f":"SUM(F41:F44)","v":0}]
["G. Venta de Productos"]
[]
[]
[]
[]
[null,null,null,null,"Subtotal G",{"$f":"SUM(F47:F50)","v":0}]
["H. Publicidad y/o Esponsorización"]
[]
[]
[]
[]
[null,null,null,null,"Subtotal H",{"$f":"SUM(F53:F56)","v":0}]
["I. Otros ingressos"]
[]
[]
[]
[]
[]
[]
[]
[null,null,null,null,"Subtotal I",{"$f":"SUM(F59:F65)","v":0}]
["Total INGRESOS",null,null,null,"TOTAL",{"$f":"+F15+F21+F27+F33+F39+F45+F51+F57+F66","v":0}]
[]
[]
[{"$f":"'Relación de gastos'!A100:K100","v":"El Sr./Sra. (indicar el nombre y apellidos de la persona representante que firma la justificación) con DNI/NIE (indicar el núm. DNI) en calidad de persona física beneficiaria o representante legal de la persona jurídica beneficiaria (indicar nombre y apellidos) con NIF (indicar núm DNI)."}]
["CERTIFICA que los ingresos imputados al proyecto/actividad/servicio subvencionado han sido efectivamente ingresados; que custodiará la documentación soporte que lo acredita; que esta documentación se encuentra a disposición del Ayuntamiento de Barcelona o de los otros entes municipales en los archivos de esta organización, durante un período mínimo de 4 años a contar desde la fecha de presentación de la presente justificación."]
[]
[]
[null,"Población y fecha:",null,null,null,"Firma y sello (en caso de registro físico)"]
[null,null,null,null,null,"En caso de presentación de la documentación por vía telemática, debe imprimir/ guardar las hojas en formato pdf y firmarlas electrónicamente mediante certificado digital (no será válida la firma escaneada)."]
[]
[null,"Nota:"]
[null,"(0) El número de orden debe ser correlativo comenzando por el número A1, A2, A3, B4, etc."]
[null,"(1) ) En caso de que el ingreso esté pendiente de cobro, indicar \"P. Cobro\" "]

{"sheet":"Gastos e ingresos","index":2,"n_rows":74,"n_cols":11,"rows_kept":74,"cut":false,"hidden":false,"merged":[[46,0,46,10],[10,0,11,1],[24,6,24,7],[25,6,25,7],[25,8,25,9],[17,2,18,2],[17,3,18,3],[10,8,11,8],[10,9,11,9],[10,2,11,2],[10,3,11,3],[10,6,11,7],[17,1,18,1],[32,0,32,9],[33,0,34,9],[44,0,44,10],[4,5,4,6],[5,0,5,1],[5,2,5,3],[5,5,5,6],[9,6,9,7],[6,0,6,1],[6,2,6,3],[9,0,9,1],[4,0,4,1],[4,2,4,3],[36,1,36,2],[37,4,38,10],[45,0,45,10],[40,0,40,10],[41,0,41,10],[42,0,42,10],[43,0,43,10]]}
[]
[]
["Estado de los gastos realizados y de los ingressos obtenidos por la ejecución de la actividad subvencionada (*)"]
[]
["Nombre de la persona física/jurídica beneficiaria:         ",null,{"$f":"IF('Relación de gastos'!C3:D3<>\"\",'Relación de gastos'!C3:D3,\"\")","v":""},null,null,"Importe del coste total del proyecto:",null,{"$f":"'Relación de ingresos '!H3","v":""},"euros"]
["Código de subvención:",null,{"$f":"IF('Relación de gastos'!C4:D4<>\"\",'Relación de gastos'!C4:D4,\"\")","v":""},null,null,"Importe de la subvención otorgada",null,{"$f":"'Relación de ingresos '!H4","v":""},"euros"]
["Nombre del proyecto subvencionado:",null,{"$f":"IF('Relación de gastos'!C5:D5<>\"\",'Relación de gastos'!C5:D5,\"\")","v":""},null,null,"Período de ejecución del proyecto subvencionado:",null,null,{"$f":"'Relación de ingresos '!H5","v":""},"a",{"$f":"'Relación de ingresos '!J5","v":""}]
[]
["SUBVENCIONES PARA EL FORTALECIMIENTO Y REACTIVACIÓN DE LA ECONOMÍA SOCIAL Y SOLIDARIA 2021"]
["GASTOS PREVISTOS",null,"importe en euros",null,"importe en euros",null,"INGRESOS PREVISTOS",null,"importe en euros"]
["Gastos directos \n(aquellos que se identifican directamente con el proyecto)",null,"Previsión inicial o reformulada ya aprovada (1) ","Gastos realizados (2)","Diferencia\n",null,"Ingresos previstos",null,"Previsión inicial (1)","Ingresos obtenidos (3)"]
[null,null,null,null,"(2-1)"]
["Ad","D.1   Nóminas y seguridad social IRPF (régimen general o régimen de autónomos) del personal propio vinculado al proyecto subvencionado (máximo 40% subvención)",null,{"$f":"'Relación de gastos'!H16","v":0},{"$f":"+C13-D13","v":0},null,"A.","Subvención municipal (importe solicitado en la instancia/otorgado)",null,{"$f":"'Relación de ingresos '!F15","v":0}]
[null,"D.2  Rendimientos anuales netos del empresario/a individual (ver 13.2 bases) (máximo 40% subvención)",null,{"$f":"'Relación de gastos'!H22","v":0},{"$f":"+C14-D14","v":0},null,"B.","Subvenciones de otras  administraciones",null,{"$f":"'Relación de ingresos '!F21","v":0}]
[null,"D.3 Trabajos realizados por profesionales y empresas externas directamente vinculadas al proyecto subvencionado (diseño, implementación, formación y otros relacionados con el desarrollo del proyecto)",null,{"$f":"'Relación de gastos'!H28","v":0},{"$f":"+C15-D15","v":0},null,"C.","Subvenciones de entes privados",null,{"$f":"'Relación de ingresos '!F27","v":0}]
[null,"D.4 Cuotas de inscripción, alquiler de sistemas de software y hardware y mantenimiento",null,{"$f":"'Relación de gastos'!H34","v":0},{"$f":"+C16-D16","v":0},null,"D.","Recursos propios de la organización aplicados al proyecto",null,{"$f":"'Relación de ingresos '!F33","v":0}]
[null,"Total Gastos Directos   ",{"$f":"SUM(C13:C16)","v":0},{"$f":"SUM(D13:D16)","v":0},{"$f":"SUM(E13:E16)","v":0},null,"E.","Taquillaje",null,{"$f":"'Relación de ingresos '!F39","v":0}]
[null,"Gastos indirectos (se podran asignar al proyecto utilizando un porcentage de asignación)","Previsión inicial o reformulada ya aprobada (1)","Gastos realizados (2) ","Diferencia\n",null,"F.","Cuotas de inscripción",null,{"$f":"'Relación de ingresos '!F45","v":0}]
[null,null,null,null,"(2-1)",null,"G.","Venta de Productos",null,{"$f":"'Relación de ingresos '!F51","v":0}]
[null,"I.1 Personal de soporte al proyecto subvencionado (Nóminas y seguridad social)",null,{"$f":"'Relación de gastos'!H42","v":0},{"$f":"+C20-D20","v":0},null,"H","Publicidad y/o Esponsorización",null,{"$f":"'Relación de ingresos '!F57","v":0}]
[null,"I.2  Seguros",null,{"$f":"'Relación de gastos'!H48","v":0},0,null,"I.","Otros ingresos",null,{"$f":"'Relación de ingresos '!F66","v":0}]
[null,"I.3   Amortización",null,{"$f":"'Relación de gastos'!H54","v":0},0,null,null,"Total Ingressos",{"$f":"SUM(I13:I21)","v":0},{"$f":"SUM(J13:J21)","v":0}]
[null,"I.4  Alquiler de bienes inmuebles",null,{"$f":"'Relación de gastos'!H60","v":0},0]
[null,"I.5  Adquisición de materiales y bienes consumibles parcialmente imputables al proyecto",null,{"$f":"'Relación de gastos'!H66","v":0},0]
[null,"I.6  Mantenimiento de edificios y/o instalaciones",null,{"$f":"'Relación de gastos'!H72","v":0},0,null,"Ingresos menos gastos ",null,{"$f":"+I22-C31","v":0},{"$f":"+J22-D31","v":0}]
[null,"I.7  Comunicaciones (teléfono, correos, conexión a internet)",null,{"$f":"'Relación de gastos'!H78","v":0},0,null,"Desviación de Gastos (4)",null,"Desviación de ingresos (4)"]
[null,"I.8  Gastos financieros",null,{"$f":"'Relación de gastos'!H84","v":0},0,null,"Importe"," % ","Importe","%"]
[null,"I.9  Suministros ",null,{"$f":"'Relación de gastos'!H90","v":0},0,null,{"$f":"D31-C31","v":0},{"$f":"D31/C31","v":{"$error":"#DIV/0!"}},{"$f":"J22-I22","v":0},{"$f":"J22/I22","v":{"$error":"#DIV/0!"}}]
[null,"I.10 Trabajos realizados por otras empresas, parcialmente imputables al proyecto subvencionable (limpieza, seguridad...)",null,{"$f":"'Relación de gastos'!H96","v":0},0,null,null,null,"% subvencionado inicialmente o después de reformulación (5)",{"$f":"I13/I22","v":{"$error":"#DIV/0!"}}]
[null,"Total Gastos Indirectos (máx. 10% subvención)",{"$f":"SUM(C20:C29)","v":0},{"$f":"SUM(D20:D29)","v":0},{"$f":"SUM(E20:E29)","v":0},null,null,null,"% subvencionado después de justificación (6)",{"$f":"+J13/J22","v":{"$error":"#DIV/0!"}}]
[null,"Total Gastos",{"$f":"C17+C30","v":0},{"$f":"D17+D30","v":0},{"$f":"E17+E30","v":0}]
[]
["El Sr./Sra. (indicar el nombre y apellidos de la persona representante que firma la justificación) con DNI/NIE (indicar el núm. DNI) en calidad de persona física beneficiaria o representante legal de la persona jurídica beneficiaria (indicar nombre y apellidos) con NIF (indicar núm DNI)."]
["CERTIFICA que los ingresos imputados al proyecto/actividad/servicio subvencionado han sido efectivamente ingresados; que custodiará la documentación soporte que lo acredita; que esta documentación se encuentra a disposición del Ayuntamiento de Barcelona o de los otros entes municipales en los archivos de esta organización, durante un período mínimo de 4 años a contar desde la fecha de presentación de la presente justificación."]
[]
[]
[null,"Población y fecha: ",null,null,"Firma y sello (en caso de registro físico)"]
[null,null,null,null,"En caso de presentación de la documentación por vía telemática, debe imprimir/ guardar las hojas en formato pdf y firmarlas electrónicamente mediante certificado digital (no será válida la firma escaneada)."]
[]
["Notas:"]
["(*) Las columnas sombreadas en color se irán rellenando automáticamente a partir de los datos introducidos en los documentos de gastos -detalle e ingresos-detalle. Por lo tanto, no imprimir esta hoja hasta haber rellenado las otras."]
["(1) Previsión inicial o reformulación ya aprobada= Se debe indicar la previsión inicial de gastos y de ingresos según aquello que se indicó en el proyecto original en el \"plan de viabilidad económica del proyecto - presupuesto general\". En caso de que ya se haya aprobado una reformulación, se deben indicar las cantidades reformuladas.  "]
["(2) Gastos reales = Coste real total del proyecto subvencionado. Automáticamente se introducirán los subtotales de los gastos relacionados en la hoja Gastos-detalle."]
["(3) Ingresos reales = Total de ingresos obtenidos para la realización del proyecto subvencionado. Automáticamente se introducirán los subtotales de los ingresos relacionados en la hoja Ingresos-detalle."]
["(4) Desviación= En el caso de los gastos, la desviación es la diferencia entre gastos reales y la previsión inicial de gastos; y en el caso de ingresos, la diferencia entre los ingresos reales y la previsión inicial de ingresos. "]
["(5) % financiación municipal inicial o después de reformulación = porcentaje que supone la subvencións municipal (A) respecto del total de ingresos del proyecto subvencionado."]
["(6) % financiación municipal después de justificación=  porcentaje que supone la subvencións municipal (A) respecto del total de ingresos del proyecto subvencionado. En caso de existir una desviación siempre ha de motivarse."]
[]
[]
[]
[]
[]
[]
[]
[]
[]
[]
[]
[]
[]
[]
[]
[]
[]
[]
[]
[]
[]
[]
[]
[]
[]
[]
[null,null,0]